bitfinex-derivatives/quotes_ETHF0:USTF0_20220108
["timestamp","ask_amount","ask_price","bid_price","bid_amount"]
[1641675654643,2.00479,3029.0,3028.6,14.17]
[1641675655042,2.00479,3029.0,3028.5,1.498887]
[1641675655043,2.00479,3029.0,3028.8,14.17]
[1641675655244,48.51127854,3029.9,3028.8,14.17]
[1641675655843,47.6823,3029.9,3028.5,2.29124343]
[1641675656243,2.00479,3029.7,3029.0,2.00479]
[1641675656445,0.66197,3029.6,3029.0,2.00479]
[1641675656643,0.66197,3029.6,3029.0,2.666759]
[1641675659350,0.66197,3029.6,3029.0,14.831969]
[1641675659552,2.00479,3029.7,3029.0,0.661969]
[1641675659952,2.00479,3029.7,3029.1,14.17]
[1641675660151,2.00479,3030.0,3029.3,14.17]
[1641675660352,2.00479,3030.0,3029.6,14.17]
[1641675660553,2.83376854,3030.5,3029.6,14.17]
[1641675660755,2.83376854,3030.5,3029.8,14.17]
[1641675661153,2.83376854,3030.5,3030.0,14.17]
[1641675661154,0.82897854,3030.5,3030.0,14.17]
[1641675661352,0.82897854,3030.5,3030.0,14.9401]
[1641675661755,0.82897854,3030.5,3030.2,14.17]
[1641675662159,0.82897854,3030.5,3030.3,1.302756]
[1641675662356,44.2139,3031.2,3030.3,1.302756]
[1641675662357,0.66197,3030.7,3030.4,2.00479]
[1641675662558,1.496,3030.9,3029.4,1.64983015]
[1641675662756,0.9189,3030.9,3029.4,1.64983015]
[1641675663157,1.05043039,3030.8,3029.4,1.64983015]
[1641675663557,1.05043039,3030.8,3029.5,14.17]
[1641675663755,1.05043039,3030.8,3029.6,0.0825]
[1641675664359,2.00479,3030.2,3029.7,14.17]
[1641675664556,2.00479,3030.5,3029.8,14.831969]
[1641675665157,23.35677854,3031.2,3029.8,14.831969]
[1641675665357,0.82897854,3031.2,3030.4,14.17]
[1641675665561,0.82897854,3031.2,3030.5,0.661969]
[1641675666259,0.82897854,3031.2,3030.6,2.00479]
[1641675666463,2.00479,3031.3,3030.7,1.302756]
[1641675666860,2.00479,3031.3,3030.7,15.472756]
[1641675667060,0.82897854,3031.9,3030.9,14.17]
[1641675667263,0.82897854,3031.9,3031.1,1.5]
[1641675667461,0.82697854,3031.9,3031.3,14.17]
[1641675667661,0.82697854,3031.9,3031.5,14.17]
[1641675667862,0.82697854,3031.9,3031.6,0.661969]
[1641675668062,0.82697854,3031.8,3031.6,1.562469]
[1641675668262,7.854e-05,3031.8,3031.7,19.67958]
[1641675668661,7.854e-05,3031.8,3031.7,6.150367]
[1641675669260,7.854e-05,3031.8,3031.7,4.650367]
[1641675669463,4.09222028,3032.8,3031.7,4.00958]
[1641675669663,0.66197,3032.0,3031.7,4.00958]
[1641675669864,2.00479,3032.8,3031.7,4.00958]
[1641675670068,2.9061641,3032.8,3031.7,4.00958]
[1641675670263,1.64929954,3032.4,3032.1,2.00479]
[1641675670463,2.31126954,3032.4,3032.1,2.00479]
[1641675671664,1.64929954,3032.4,3032.1,2.00479]
[1641675672164,1.64912275,3032.7,3032.2,0.661969]
[1641675672165,1.14135162,3032.7,3032.2,0.661969]
[1641675672467,2.00479,3032.8,3032.2,1.593869]
[1641675672663,2.00479,3032.8,3032.3,14.17]
[1641675672864,2.00479,3032.8,3032.5,14.17]
[1641675673266,22.1093,3033.6,3032.6,0.661969]
[1641675673467,22.1093,3033.6,3032.6,14.831969]
[1641675674167,1.09948469,3033.5,3032.6,14.831969]
[1641675674466,3.10427469,3033.5,3032.8,2.00479]
[1641675674668,3.10427469,3033.5,3033.0,14.17]
[1641675674867,2.00479,3033.8,3033.0,15.81799217]
[1641675675070,2.00479,3033.8,3033.0,14.17]
[1641675675268,2.00479,3033.8,3033.2,14.17]
[1641675675467,2.00479,3033.8,3033.0,14.17]
[1641675675668,2.00479,3033.8,3033.2,14.17]
[1641675676268,2.00479,3033.8,3033.4,16.17479]
[1641675676668,2.00479,3033.8,3033.6,14.17]
[1641675677168,2.00479,3033.8,3033.7,1.302756]
[1641675677369,2.00479,3033.8,3033.7,0.661969]
[1641675677573,2.00479,3033.8,3033.4,2.00479]
[1641675677770,2.63219,3033.8,3032.8,2.00479]
[1641675678369,4.63698,3033.8,3032.8,2.00479]
[1641675678571,4.63698,3033.8,3032.9,14.17]
[1641675678770,4.63698,3033.8,3032.8,2.00479]
[1641675679573,2.00479,3033.8,3032.9,15.81804377]
[1641675680374,2.00479,3033.8,3033.4,2.00479]
[1641675680575,2.00479,3033.8,3033.5,1.302756]
[1641675680975,2.00479,3033.8,3033.4,2.00479]
[1641675681176,2.00479,3033.8,3032.8,2.00479]
[1641675681476,2.59239,3033.8,3032.8,2.00479]
[1641675681675,4.24089563,3033.8,3032.8,2.00479]
[1641675682275,2.00479,3033.4,3032.8,2.00479]
[1641675682476,2.00479,3033.4,3032.9,0.661969]
[1641675682679,2.00479,3033.4,3032.9,1.302756]
[1641675683378,2.15797,3033.3,3032.4,2.00479]
[1641675683576,0.66197,3033.3,3032.4,2.00479]
[1641675684377,2.00479,3033.0,3032.4,2.00479]
[1641675684579,2.00479,3033.0,3032.5,1.302756]
[1641675684778,2.00479,3033.0,3032.6,14.17]
[1641675684978,2.00479,3033.0,3032.7,0.661969]
[1641675685181,2.00479,3033.0,3032.7,14.831969]
[1641675685381,1.64857901,3033.7,3032.7,14.831969]
[1641675685579,22.9384,3034.3,3032.8,0.08241]
[1641675685778,22.9384,3034.3,3032.7,15.81819045]
[1641675685980,22.9384,3034.3,3032.8,0.0824]
[1641675686380,2.00479,3033.9,3033.2,14.17]
[1641675686581,1.33712407,3033.8,3033.3,1.302756]
[1641675687480,1.496,3033.4,3032.8,0.0824]
[1641675687683,5.43294057,3033.8,3032.4,2.00479]
[1641675687881,1.496,3033.3,3032.4,2.00479]
[1641675688281,1.64871219,3033.4,3032.4,2.00479]
[1641675688481,2.00479,3032.8,3032.4,2.00479]
[1641675688681,2.00479,3032.8,3032.5,0.661969]
[1641675689181,2.00479,3033.1,3032.5,0.661969]
[1641675689381,0.66197,3033.0,3032.5,0.661969]
[1641675689783,1.21034043,3032.9,3032.5,0.661969]
[1641675690385,2.15797,3032.8,3031.8,2.00479]
[1641675691289,1.496,3032.3,3031.3,0.08243]
[1641675691487,23.26268115,3032.2,3030.5,1.73182115]
[1641675691686,45.57488115,3032.2,3030.5,1.64938115]
[1641675691887,1.496,3031.8,3030.3,0.08247]
[1641675692087,1.496,3031.8,3029.5,20.13327]
[1641675692287,1.64972672,3031.6,3029.9,1.64972672]
[1641675692489,20.0041,3032.1,3030.8,14.17]
[1641675692692,43.0506,3032.2,3030.9,1.73161539]
[1641675692889,43.0506,3032.2,3031.0,14.17]
[1641675693391,1.64870132,3033.5,3031.8,1.5]
[1641675693590,44.5828,3033.4,3031.9,0.08244]
[1641675693791,44.5828,3033.4,3031.9,14.25244]
[1641675693992,22.7353,3033.4,3031.9,15.75244]
[1641675694193,22.7353,3033.4,3031.9,14.25244]
[1641675694393,24.74009,3033.4,3032.7,2.00479]
[1641675694593,0.66197,3033.3,3032.7,2.61979]
[1641675695694,1.48792569,3033.3,3032.7,2.61979]
[1641675696496,1.48792569,3033.3,3033.1,2.00479]
[1641675696895,1.48792569,3033.3,3033.1,9e-05]
[1641675700801,2.00479,3033.7,3033.1,15.10379]
[1641675701403,2.00479,3033.7,3033.2,0.661969]
[1641675701605,3.65311086,3034.2,3033.3,14.17]
[1641675701804,2.00479,3034.2,3033.3,14.2524]
[1641675702003,2.00479,3034.2,3033.1,15.10379]
[1641675702403,2.00479,3034.2,3033.5,2.00479]
[1641675702603,46.2855,3034.4,3033.6,14.831969]
[1641675702806,46.2855,3034.4,3033.7,0.640787]
[1641675702807,23.1959,3034.4,3033.7,0.640787]
[1641675703007,2.00479,3034.5,3033.8,14.831969]
[1641675703203,2.00479,3034.5,3033.9,0.08239]
[1641675703403,2.00479,3034.5,3033.8,15.0196]
[1641675703603,2.00479,3034.5,3033.9,0.08239]
[1641675703806,22.5353,3035.0,3034.1,15.67]
[1641675704003,66.8171,3035.5,3034.1,15.67]
[1641675704204,45.4886,3035.5,3034.4,14.17]
[1641675704403,22.1015,3035.5,3034.8,2.00479]
[1641675704603,2.8296217,3035.6,3034.9,0.661969]
[1641675704803,2.00479,3035.6,3035.0,0.640787]
[1641675705503,2.00479,3035.6,3035.1,14.831969]
[1641675705708,2.00479,3035.9,3035.6,0.002]
[1641675705903,2.00479,3035.9,3035.6,0.8844]
[1641675706103,2.00479,3035.9,3035.7,0.661969]
[1641675706705,2.00479,3036.4,3035.7,0.661969]
[1641675707104,2.00479,3036.4,3035.8,0.640787]
[1641675707304,2.00479,3036.4,3035.9,0.661969]
[1641675707904,2.66676,3036.4,3035.9,0.661969]
[1641675708406,2.66676,3036.4,3035.6,0.8844]
[1641675708605,2.66676,3036.4,3035.6,0.002]
[1641675708808,1.496,3035.8,3035.6,0.002]
[1641675709006,0.66197,3035.7,3035.6,0.002]
[1641675709206,1.37517,3035.7,3035.6,0.002]
[1641675709608,0.7132,3035.7,3035.6,0.002]
[1641675710410,2.00479,3036.0,3035.6,0.002]
[1641675711211,0.66197,3035.9,3035.1,14.17]
[1641675711414,0.66197,3035.9,3035.0,2.00479]
[1641675711613,0.66197,3035.9,3034.5,0.08235]
[1641675711812,1.52197071,3035.8,3034.5,0.08235]
[1641675712012,1.52197071,3035.8,3034.4,1.64725649]
[1641675712213,1.52197071,3035.8,3034.5,1.72953509]
[1641675712414,2.00479,3035.2,3034.5,3.73432509]
[1641675712615,2.00479,3035.2,3034.6,1.302756]
[1641675713619,2.00479,3035.2,3034.7,14.17]
[1641675713816,2.00479,3035.2,3034.8,0.08237]
[1641675714016,1.52197071,3035.8,3034.9,14.17]
[1641675714419,1.52197071,3035.8,3035.1,2.00479]
[1641675714617,2.00479,3036.0,3035.2,14.831969]
[1641675714817,2.00479,3036.0,3035.3,14.810787]
[1641675715018,2.00479,3036.0,3035.3,14.893137]
[1641675715317,2.00479,3036.3,3035.5,14.17]
[1641675715718,2.00479,3036.3,3035.6,0.661969]
[1641675715919,2.00479,3036.3,3035.6,1.366669]
[1641675716220,2.00479,3036.3,3035.7,14.17]
[1641675716418,2.00479,3036.3,3035.8,0.661969]
[1641675716818,2.00479,3036.3,3035.8,14.831969]
[1641675717219,27.1565,3037.1,3036.3,14.17]
[1641675717418,1.64644286,3037.6,3036.4,16.331969]
[1641675717621,1.64644286,3037.6,3036.4,15.472756]
[1641675717818,22.0621317,3037.8,3036.4,15.555056]
[1641675718018,22.0621317,3037.8,3036.4,17.20122241]
[1641675718720,2.00479,3037.4,3036.8,14.17]
[1641675718918,2.00479,3037.4,3037.0,14.17]
[1641675719119,2.00479,3037.4,3037.0,15.1154]
[1641675719519,2.00479,3037.4,3037.1,1.302756]
[1641675719921,2.00479,3037.4,3037.1,0.661969]
[1641675721020,0.66197,3037.3,3036.6,0.0823]
[1641675721223,0.66197,3037.3,3035.8,0.0823]
[1641675721420,0.66197,3037.3,3035.7,0.08233]
[1641675721619,0.66197,3037.3,3035.6,15.81658383]
[1641675721821,2.15797,3037.3,3035.6,15.81658383]
[1641675722524,2.00479,3036.6,3035.9,2.00479]
[1641675722722,2.00479,3036.6,3036.0,1.302756]
[1641675722937,2.15921583,3036.5,3035.6,2.00479]
[1641675723725,2.00479,3036.6,3035.8,1.64652148]
[1641675723922,21.2854,3036.9,3035.9,0.661969]
[1641675724123,1.19997475,3037.1,3035.9,0.661969]
[1641675724423,1.496,3036.7,3035.6,2.00479]
[1641675724622,2.00479,3036.2,3035.6,2.00479]
[1641675724824,0.66197,3036.1,3035.6,2.645577]
[1641675725028,0.66197,3036.1,3035.6,2.00479]
[1641675725625,0.66197,3036.1,3035.3,1.64674923]
[1641675725925,0.66197,3036.1,3035.2,2.00479]
[1641675726527,2.00479,3035.6,3035.2,2.00479]
[1641675726828,2.00479,3035.6,3035.3,1.302756]
[1641675727027,0.66197,3036.1,3035.3,15.472756]
[1641675727227,2.00479,3036.2,3035.4,1.5]
[1641675727427,2.00479,3036.2,3035.5,0.661969]
[1641675728029,1.17706187,3036.3,3035.5,0.661969]
[1641675728229,22.27347844,3036.6,3035.5,14.831969]
[1641675728429,1.06447844,3036.6,3035.5,14.831969]
[1641675728631,1.06447844,3036.6,3036.0,14.17]
[1641675728832,2.00479,3036.9,3036.2,15.67]
[1641675729029,2.00479,3036.9,3036.5,14.17]
[1641675729431,2.00479,3036.9,3036.6,0.661969]
[1641675729831,1.14697948,3037.5,3036.6,0.661969]
[1641675730331,21.1059,3037.8,3036.7,14.17]
[1641675730530,2.00479,3037.4,3036.7,16.17479]
[1641675730738,2.00479,3037.4,3036.8,0.661969]
[1641675730931,2.00479,3037.4,3036.9,0.640787]
[1641675731131,2.66676,3037.4,3036.7,2.00479]
[1641675731334,2.00479,3037.7,3036.9,14.17]
[1641675731532,2.00479,3037.7,3036.8,0.661969]
[1641675731533,0.8248317,3039.1,3037.6,3.14537551]
[1641675731830,0.8248317,3039.1,3038.6,1.5]
[1641675732032,44.0131317,3039.7,3038.8,14.17]
[1641675732230,22.5336,3039.7,3039.1,0.002]
[1641675732430,23.19557,3039.7,3039.2,0.661969]
[1641675732632,2.00479,3039.6,3039.2,0.661969]
[1641675733030,0.66197,3039.5,3039.1,0.002]
[1641675733430,2.00479,3039.6,3039.1,0.002]
[1641675733431,2.00479,3039.6,3039.1,0.663969]
[1641675733631,2.66676,3039.6,3039.1,0.663969]
[1641675734331,2.00479,3039.9,3039.2,14.17]
[1641675734530,22.7937,3040.4,3039.8,2.00479]
[1641675734730,0.66197,3040.4,3039.8,2.84179]
[1641675734931,0.66197,3040.4,3039.9,0.640787]
[1641675735133,2.00479,3040.5,3040.4,0.002]
[1641675735333,4.16276,3040.5,3040.4,0.002]
[1641675735935,4.1364557,3040.5,3040.4,0.002]
[1641675737234,4.1364557,3040.5,3039.1,0.08222]
[1641675737435,4.1364557,3040.5,3039.9,1.64427439]
[1641675737436,2.00479,3040.5,3039.9,1.64427439]
[1641675737636,2.00479,3040.5,3040.0,1.302756]
[1641675738244,23.91497439,3041.6,3040.0,1.302756]
[1641675738436,23.91497439,3041.6,3040.1,14.25221]
[1641675738736,23.91497439,3041.6,3040.5,16.17479]
[1641675738737,2.00479,3041.2,3040.5,16.17479]
[1641675738937,2.00479,3041.2,3040.6,0.661969]
[1641675739340,2.66676,3041.2,3040.6,0.661969]
[1641675740039,2.66676,3041.2,3040.6,1.302756]
[1641675741240,2.66676,3041.2,3040.6,0.661969]
[1641675741440,2.66676,3041.2,3040.2,2.00479]
[1641675741441,1.64460971,3041.0,3040.0,0.08221]
[1641675741643,2.60639,3041.2,3039.3,0.08222]
[1641675741842,2.60639,3041.2,3039.5,1.64451775]
[1641675741843,1.496,3040.8,3039.5,1.64451775]
[1641675742139,1.496,3040.8,3039.3,0.08222]
[1641675742541,2.00479,3040.0,3039.3,2.08701]
[1641675742741,0.66197,3039.9,3038.8,0.08223]
[1641675742942,0.66197,3039.9,3038.6,1.64495599]
[1641675743342,0.66197,3039.9,3038.7,0.08225]
[1641675743542,0.66197,3039.9,3038.3,1.58225]
[1641675743742,0.66197,3039.9,3038.8,15.67]
[1641675743942,1.496,3039.6,3038.2,0.08225]
[1641675744149,1.496,3039.3,3038.2,0.08225]
[1641675744344,1.496,3039.3,3037.7,1.64545402]
[1641675744546,1.496,3039.3,3038.1,2.00479]
[1641675744547,2.00479,3038.8,3038.1,2.00479]
[1641675744745,0.66197,3038.7,3037.8,2.00479]
[1641675744944,0.66197,3038.7,3037.8,5.15021153]
[1641675745144,2.00479,3038.8,3037.9,0.08228]
[1641675745344,2.00479,3038.8,3038.1,1.64526452]
[1641675745544,2.00479,3038.8,3038.2,1.302756]
[1641675746150,2.00479,3038.8,3038.3,14.17]
[1641675746349,2.00479,3038.8,3038.4,14.831969]
[1641675746651,2.00479,3039.5,3038.7,1.64490999]
[1641675746850,0.66197,3039.4,3038.5,2.08705]
[1641675747050,1.97717183,3039.4,3038.5,2.00479]
[1641675747751,1.97717183,3039.4,3038.5,16.17479]
[1641675748150,1.97717183,3039.4,3038.5,2.00479]
[1641675748551,1.97717183,3039.4,3038.5,4.00958]
[1641675748950,1.97717183,3039.4,3038.5,18.17958]
[1641675749152,1.97717183,3039.4,3038.5,4.00958]
[1641675749951,1.97717183,3039.4,3038.6,14.17]
[1641675750151,1.97717183,3039.4,3038.7,0.661969]
[1641675750452,2.00479,3039.5,3038.7,0.661969]
[1641675751151,2.00479,3039.5,3038.8,14.17]
[1641675751351,2.00479,3039.5,3039.0,14.17]
[1641675751651,3.31209706,3039.8,3039.0,14.9039]
[1641675751853,2.00479,3039.8,3039.0,0.7339]
[1641675752052,2.00479,3039.8,3039.1,0.661969]
[1641675752653,2.00479,3039.8,3039.4,2.00479]
[1641675752854,2.00479,3039.8,3039.5,0.661969]
[1641675753055,2.00479,3040.4,3039.7,1.5]
[1641675753255,2.00479,3040.4,3039.8,14.17]
[1641675753454,1.64466381,3040.9,3039.8,1.302756]
[1641675753857,3.14066381,3040.9,3039.8,1.302756]
[1641675754056,1.64466381,3040.9,3039.8,1.302756]
[1641675754557,2.00479,3040.8,3040.0,2.00479]
[1641675754759,0.66197,3040.7,3040.0,2.00479]
[1641675755155,0.66197,3040.7,3039.8,0.640787]
[1641675755356,1.64539194,3040.6,3039.8,0.640787]
[1641675755555,0.66197,3040.5,3039.8,0.640787]
[1641675755757,3.80287458,3040.5,3039.9,0.661969]
[1641675755956,2.30687458,3040.5,3039.4,2.00479]
[1641675756156,1.496,3040.4,3039.4,2.00479]
[1641675756357,1.64507506,3040.1,3038.5,0.08222]
[1641675756656,2.00479,3039.7,3039.0,2.00479]
[1641675756857,2.00479,3039.7,3039.1,1.302756]
[1641675757256,1.4837357,3039.6,3039.1,1.302756]
[1641675758057,1.4837357,3039.6,3039.2,14.17]
[1641675758359,1.4837357,3039.6,3039.3,0.661969]
[1641675758958,1.64488564,3040.5,3039.5,15.67]
[1641675759159,1.64445015,3041.3,3039.7,1.5]
[1641675759360,5.414,3041.6,3040.2,15.81413381]
[1641675759664,23.45829065,3041.4,3040.0,0.08221]
[1641675759860,23.45829065,3041.4,3040.0,14.17]
[1641675759861,21.8139,3041.4,3040.0,14.17]
[1641675760061,21.8139,3041.4,3040.1,0.08221]
[1641675760260,1.64429061,3041.6,3040.1,0.08221]
[1641675760462,20.9668,3041.8,3040.4,1.5]
[1641675760662,2.00479,3041.0,3040.5,14.25219]
[1641675760862,2.00479,3041.0,3040.6,15.472756]
[1641675761065,2.00479,3041.0,3040.7,0.08221]
[1641675761261,2.00479,3041.0,3040.8,0.661969]
[1641675762864,42.6621,3042.3,3040.9,1.72584928]
[1641675763064,7.057461,3043.1,3041.4,1.643461]
[1641675763265,1.496,3042.5,3041.4,0.6515]
[1641675763465,1.64375275,3042.6,3041.4,0.6515]
[1641675764068,1.496,3041.7,3041.4,0.0001]
[1641675764267,0.66197,3041.6,3040.1,1.72633544]
[1641675764667,2.00479,3041.0,3040.1,1.72633544]
[1641675764870,0.66197,3040.9,3040.4,1.302756]
[1641675765068,2.00479,3041.0,3040.4,1.302756]
[1641675765269,2.00479,3041.0,3040.4,15.472756]
[1641675765767,2.66676,3041.0,3040.4,1.302756]
[1641675766568,2.66676,3041.0,3040.4,15.472756]
[1641675766768,2.00479,3041.0,3040.4,1.302756]
[1641675767375,2.00479,3041.0,3040.5,15.67]
[1641675767570,0.66197,3040.9,3040.5,0.08221]
[1641675767971,0.66197,3040.9,3040.0,2.00479]
[1641675768770,2.00479,3040.4,3040.0,2.00479]
[1641675768977,0.66197,3040.3,3040.0,2.00479]
[1641675769372,2.00479,3040.4,3040.0,2.666759]
[1641675770572,2.66676,3040.4,3040.0,2.00479]
[1641675770772,2.66676,3040.4,3039.5,0.08222]
[1641675770975,3.43366,3040.4,3039.4,2.00479]
[1641675771173,1.496,3039.8,3038.6,0.08222]
[1641675771374,22.3035,3040.3,3038.3,0.08225]
[1641675771577,1.496,3039.7,3038.1,0.08225]
[1641675771777,0.599,3039.7,3038.1,14.25225]
[1641675771975,1.496,3039.5,3038.1,14.25225]
[1641675772174,1.496,3040.0,3038.3,14.17]
[1641675772375,1.496,3040.0,3038.4,0.08225]
[1641675772578,20.1803,3040.2,3038.4,0.08225]
[1641675772774,2.00479,3039.4,3038.7,14.17]
[1641675772975,2.00479,3039.4,3038.9,14.17]
[1641675773174,2.00479,3039.4,3039.0,0.08225]
[1641675773377,2.00479,3039.4,3039.1,0.661969]
[1641675773975,2.00479,3039.7,3039.1,0.661969]
[1641675774178,22.7719,3041.0,3039.2,14.25225]
[1641675774475,0.97855029,3040.7,3039.2,14.25225]
[1641675774677,0.97855029,3040.7,3039.7,2.00479]
[1641675774678,2.00479,3040.4,3039.7,2.00479]
[1641675774875,2.00479,3040.7,3039.8,14.831969]
[1641675775078,2.00479,3040.7,3039.9,0.08222]
[1641675775276,2.00479,3040.7,3040.1,14.17]
[1641675775976,2.00479,3040.7,3040.2,0.661969]
[1641675776176,2.66676,3040.7,3040.2,0.661969]
[1641675779279,2.66676,3040.7,3039.9,0.08222]
[1641675779483,2.66676,3040.7,3040.0,0.661969]
[1641675779882,2.66676,3040.7,3039.8,0.640787]
[1641675780783,2.00479,3040.2,3039.8,0.640787]
[1641675780985,2.66676,3040.2,3039.8,0.640787]
[1641675781383,2.00479,3040.2,3039.8,0.640787]
[1641675781783,2.00479,3040.2,3039.9,0.661969]
[1641675782787,2.00479,3040.2,3040.0,14.17]
[1641675782984,2.00479,3040.2,3040.1,14.831969]
[1641675783383,2.00479,3040.2,3040.1,0.661969]
[1641675783582,2.00479,3040.2,3040.1,14.831969]
[1641675783784,20.3092,3041.9,3040.1,15.699369]
[1641675783984,20.3092,3041.9,3040.2,0.08221]
[1641675784784,20.3092,3041.9,3040.5,2.00479]
[1641675784785,2.00479,3041.2,3040.5,2.00479]
[1641675784986,2.00479,3041.2,3040.6,0.661969]
[1641675785185,2.00479,3041.2,3040.6,1.302756]
[1641675786186,2.00479,3041.2,3040.8,14.17]
[1641675786387,2.00479,3041.2,3040.9,0.661969]
[1641675786588,2.00479,3041.5,3040.9,0.661969]
[1641675786786,2.00479,3041.5,3040.9,2.666759]
[1641675786987,2.66676,3041.5,3040.9,2.666759]
[1641675788188,2.00479,3041.5,3040.9,2.666759]
[1641675789593,2.66676,3041.5,3040.9,2.666759]
[1641675791199,2.66676,3041.5,3040.9,0.661969]
[1641675791395,2.66676,3041.5,3040.5,2.00479]
[1641675791598,3.36486,3041.5,3040.5,2.00479]
[1641675792395,4.18777061,3041.5,3040.5,2.00479]
[1641675792897,2.00479,3041.0,3040.5,2.00479]
[1641675793199,0.66197,3040.9,3040.0,2.087]
[1641675793396,0.66197,3040.9,3040.0,2.00479]
[1641675794398,0.66197,3040.9,3040.1,0.08222]
[1641675794604,0.66197,3040.9,3040.0,2.00479]
[1641675794806,2.00479,3040.5,3040.0,2.00479]
[1641675795106,2.66676,3040.5,3040.1,0.640787]
[1641675797008,2.66676,3040.5,3040.0,0.08222]
[1641675797208,3.31646,3040.5,3039.5,1.37857767]
[1641675798211,2.66676,3040.5,3039.5,15.54857767]
[1641675798609,2.66676,3040.5,3039.6,0.08222]
[1641675798811,3.50079,3040.1,3039.6,0.08222]
[1641675799012,1.496,3039.9,3039.2,1.90377443]
[1641675799409,0.66197,3039.8,3039.2,1.90377443]
[1641675800011,0.66197,3039.8,3039.3,0.640787]
[1641675800311,0.66197,3039.8,3039.3,1.302756]
[1641675800510,2.00479,3040.1,3039.3,1.302756]
[1641675800712,0.66197,3040.0,3039.3,1.302756]
[1641675800910,2.00479,3039.4,3039.3,1.302756]
[1641675802016,2.00479,3040.1,3039.3,1.302756]
[1641675802212,0.66197,3040.0,3039.3,1.302756]
[1641675802414,0.66197,3040.0,3039.3,0.661969]
[1641675803316,0.66197,3040.0,3039.4,1.16600443]
[1641675803913,0.66197,3040.0,3039.5,0.661969]
[1641675806421,1.496,3039.6,3039.1,1.37857767]
[1641675806620,0.66197,3039.5,3039.1,1.37857767]
[1641675806821,2.00479,3039.2,3039.1,1.37857767]
[1641675807019,2.00479,3039.2,3039.0,1.37857767]
[1641675808424,2.00479,3039.2,3039.1,0.661969]
[1641675809825,2.00479,3039.2,3039.1,1.18728808]
[1641675810427,2.82770061,3040.1,3039.1,2.83181124]
[1641675810626,2.82770061,3040.1,3039.9,14.17]
[1641675810826,0.82291061,3040.1,3040.0,3.389766]
[1641675811030,0.82291061,3040.2,3040.0,3.389766]
[1641675811228,0.82291061,3040.2,3040.0,17.559766]
[1641675812432,0.82291061,3040.2,3040.1,15.67]
[1641675812634,0.82291061,3040.2,3040.1,15.75222]
[1641675812830,0.82291061,3040.9,3040.1,16.27753908]
[1641675813030,0.82291061,3040.9,3040.2,0.744189]
[1641675814230,0.82291061,3040.9,3040.4,15.81401488]
[1641675814430,0.82291061,3041.1,3040.8,15.81377167]
[1641675814730,0.82291061,3041.1,3041.0,14.17]
[1641675814931,0.82291061,3041.1,3041.0,4.64868]
[1641675815130,0.82291061,3041.1,3041.0,5.310649]
[1641675816234,21.5603,3041.9,3041.0,5.83596808]
[1641675816235,0.82291061,3041.8,3041.0,5.83596808]
[1641675816436,0.66197,3041.7,3041.0,5.83596808]
[1641675817234,0.66197,3041.7,3041.0,5.310649]
[1641675817435,0.82291061,3041.6,3041.0,5.310649]
[1641675817834,0.82291061,3041.6,3041.0,19.480649]
[1641675818636,0.82291061,3041.8,3041.0,19.480649]
[1641675819437,0.82291061,3041.8,3041.0,5.310649]
[1641675819637,0.66197,3041.7,3041.0,4.671549]
[1641675820538,0.66197,3041.7,3041.1,0.5249532]
[1641675820937,2.00479,3041.2,3041.1,0.5249532]
[1641675821137,2.66676,3041.2,3041.1,0.5249532]
[1641675821342,2.66676,3041.2,3040.6,1.37857767]
[1641675821539,2.66676,3041.2,3040.6,2.01936467]
[1641675821737,2.66676,3041.2,3040.4,3.38336767]
[1641675821940,2.66676,3041.2,3040.5,0.661969]
[1641675822137,2.00479,3041.2,3040.7,1.64384733]
[1641675822339,2.00479,3041.2,3040.8,0.661969]
[1641675822940,2.00479,3041.1,3040.8,0.661969]
[1641675823539,2.00479,3041.1,3040.9,0.640787]
[1641675823942,2.00479,3041.1,3040.9,1.302756]
[1641675824140,2.00479,3041.1,3040.9,0.52500796]
[1641675824540,2.00479,3041.1,3040.9,1.18697696]
[1641675825343,2.00479,3041.1,3040.9,0.661969]
[1641675825741,2.00479,3041.1,3041.0,0.640787]
[1641675826740,2.00479,3041.1,3040.9,0.661969]
[1641675826941,2.66676,3041.1,3040.5,1.64396083]
[1641675827141,2.66676,3041.1,3040.6,0.661969]
[1641675827341,2.66676,3041.1,3040.5,1.64396083]
[1641675827742,2.66676,3041.1,3040.5,2.28474783]
[1641675828141,2.66676,3041.1,3040.5,0.640787]
[1641675828943,2.66676,3041.1,3040.6,0.52500605]
[1641675829343,2.66676,3041.1,3040.6,1.18697505]
[1641675830544,2.66676,3041.1,3040.6,0.52500605]
[1641675831145,2.66676,3041.1,3040.7,0.52500605]
[1641675832347,2.66676,3041.1,3040.6,0.640787]
[1641675833149,2.66676,3041.1,3040.6,1.302756]
[1641675833351,2.66676,3041.1,3040.7,0.52500605]
[1641675834051,2.66676,3041.1,3040.7,1.18697505]
[1641675834253,2.00479,3041.1,3040.7,1.18697505]
[1641675835650,2.00479,3041.1,3040.8,0.52500605]
[1641675836258,2.00479,3041.1,3040.9,0.661969]
[1641675837559,2.92337303,3041.7,3040.9,0.661969]
[1641675837760,0.66197,3041.6,3040.9,0.661969]
[1641675838362,0.66197,3041.6,3041.0,0.52500605]
[1641675839262,0.66197,3041.6,3041.0,1.18697505]
[1641675839863,0.66197,3041.6,3041.0,0.661969]
[1641675840262,1.496,3041.4,3040.5,1.37857767]
[1641675840464,1.496,3041.0,3040.5,1.37857767]
[1641675840763,0.66197,3040.9,3040.5,1.37857767]
[1641675840962,4.00958,3040.6,3040.5,1.37857767]
[1641675841161,4.67155,3040.6,3040.5,1.37857767]